[Event "Live Chess"]
[Site "Chess.com"]
[Date "2023.05.21"]
[Round "-"]
[White "educatedlad"]
[Black "LutherSullivan"]
[Result "0-1"]
[WhiteElo "1629"]
[BlackElo "2139"]
[TimeControl "300"]
[EndTime "16:57:36 PDT"]
[Termination "LutherSullivan won by resignation"]

1. e4 {[%clk 0:04:59.6]} 1... c5 {[%clk 0:04:55]} 2. a3 {[%clk 0:04:57.1]} 2...
g6 {[%clk 0:04:52.6]} 3. b4 {[%clk 0:04:55.5]} 3... cxb4 {[%clk 0:04:51.3]} 4.
axb4 {[%clk 0:04:54.1]} 4... Bg7 {[%clk 0:04:50.9]} 5. Nc3 {[%clk 0:04:52.1]}
5... Nc6 {[%clk 0:04:32]} 6. b5 {[%clk 0:04:49.5]} 6... Nd4 {[%clk 0:04:28.1]}
7. Ra4 {[%clk 0:04:41.7]} 7... d6 {[%clk 0:04:24.3]} 8. Nf3 {[%clk 0:04:38.6]}
8... Nxf3+ {[%clk 0:04:21.2]} 9. Qxf3 {[%clk 0:04:37.2]} 9... Nf6 {[%clk
0:04:14.1]} 10. Nd5 {[%clk 0:04:27.2]} 10... O-O {[%clk 0:04:00.4]} 11. d3
{[%clk 0:04:19.5]} 11... Nxd5 {[%clk 0:03:52.2]} 12. exd5 {[%clk 0:04:18]} 12...
Qb6 {[%clk 0:03:50.7]} 13. Be3 {[%clk 0:04:10.4]} 13... Qxb5 {[%clk 0:03:48.3]}
14. Rh4 {[%clk 0:04:01.3]} 14... Qb1+ {[%clk 0:03:38.2]} 15. Qd1 {[%clk
0:03:57.5]} 15... Qxd1+ {[%clk 0:03:28.7]} 16. Kxd1 {[%clk 0:03:56.6]} 16... a5
{[%clk 0:03:27.3]} 17. Be2 {[%clk 0:03:40.8]} 17... a4 {[%clk 0:03:19.7]} 18.
Bh6 {[%clk 0:03:38.8]} 18... Bxh6 {[%clk 0:03:09.9]} 19. Rxh6 {[%clk 0:03:37.3]}
19... b5 {[%clk 0:03:01.7]} 20. h4 {[%clk 0:03:34.1]} 20... a3 {[%clk
0:02:55.4]} 21. Kd2 {[%clk 0:03:31.7]} 21... b4 {[%clk 0:02:37.1]} 22. h5 {[%clk
0:03:28.1]} 22... g5 {[%clk 0:02:31.3]} 23. f4 {[%clk 0:03:24.1]} 23... gxf4
{[%clk 0:02:25.3]} 24. Rh4 {[%clk 0:03:18.1]} 24... a2 {[%clk 0:02:13.4]} 25. d4
{[%clk 0:03:09.4]} 25... a1=Q {[%clk 0:02:10.1]} 26. Bd3 {[%clk 0:03:08.4]}
26... f5 {[%clk 0:01:53.8]} 27. Rxf4 {[%clk 0:03:05.3]} 27... Qc3+ {[%clk
0:01:45.5]} 28. Ke2 {[%clk 0:03:03.2]} 28... Kg7 {[%clk 0:01:43.6]} 29. Re6
{[%clk 0:02:54.5]} 29... Bxe6 {[%clk 0:01:40.9]} 30. dxe6 {[%clk 0:02:54.4]}
30... Ra2 {[%clk 0:01:37.4]} 31. Bxf5 {[%clk 0:02:49.6]} 31... Rxf5 {[%clk
0:01:32.9]} 32. Rxf5 {[%clk 0:02:49.5]} 0-1

[Event "Live Chess"]
[Site "Chess.com"]
[Date "2023.05.21"]
[Round "-"]
[White "Baturin_Yevgeniy"]
[Black "Tushinskiy"]
[Result "0-1"]
[WhiteElo "1798"]
[BlackElo "2174"]
[TimeControl "300"]
[EndTime "16:57:38 PDT"]
[Termination "Tushinskiy won on time"]

1. d4 {[%clk 0:04:52.8]} 1... d5 {[%clk 0:04:58.1]} 2. c3 {[%clk 0:04:51.5]}
2... c6 {[%clk 0:04:58]} 3. Qb3 {[%clk 0:04:50.2]} 3... Nf6 {[%clk 0:04:57.9]}
4. Nf3 {[%clk 0:04:48]} 4... e6 {[%clk 0:04:57]} 5. Bg5 {[%clk 0:04:45.7]} 5...
Be7 {[%clk 0:04:56.1]} 6. Bxf6 {[%clk 0:04:44]} 6... Bxf6 {[%clk 0:04:55.1]} 7.
Nbd2 {[%clk 0:04:43.7]} 7... Nd7 {[%clk 0:04:54.5]} 8. e4 {[%clk 0:04:42.4]}
8... O-O {[%clk 0:04:53.5]} 9. Bd3 {[%clk 0:04:31.7]} 9... Re8 {[%clk
0:04:51.8]} 10. O-O {[%clk 0:02:51.7]} 10... a6 {[%clk 0:04:15.5]} 11. a4 {[%clk
0:02:32.2]} 11... g6 {[%clk 0:04:10.8]} 12. c4 {[%clk 0:02:13.7]} 12... dxe4
{[%clk 0:03:56.6]} 13. Nxe4 {[%clk 0:02:04.8]} 13... Be7 {[%clk 0:03:55]} 14. d5
{[%clk 0:01:35]} 14... cxd5 {[%clk 0:03:47]} 15. cxd5 {[%clk 0:01:34.9]} 15...
Nc5 {[%clk 0:03:46.2]} 16. Nxc5 {[%clk 0:01:28.2]} 16... Bxc5 {[%clk 0:03:46.1]}
17. Bc4 {[%clk 0:01:22.1]} 17... Rb8 {[%clk 0:03:33]} 18. dxe6 {[%clk
0:01:00.5]} 18... Bxe6 {[%clk 0:03:32.9]} 19. Rfe1 {[%clk 0:00:50.6]} 19... Bxc4
{[%clk 0:03:23.9]} 20. Qxc4 {[%clk 0:00:48.2]} 20... Qb6 {[%clk 0:03:17.5]} 21.
Rxe8+ {[%clk 0:00:42.4]} 21... Rxe8 {[%clk 0:03:17.4]} 22. Ng5 {[%clk
0:00:36.6]} 22... Re7 {[%clk 0:03:14.5]} 23. Qh4 {[%clk 0:00:28.3]} 23... h5
{[%clk 0:03:07.8]} 24. g4 {[%clk 0:00:26.2]} 24... Qxb2 {[%clk 0:03:04.9]} 25.
Rf1 {[%clk 0:00:22.6]} 25... Qd4 {[%clk 0:02:58.8]} 26. Kh1 {[%clk 0:00:18.1]}
26... Qf4 {[%clk 0:02:53.5]} 27. f3 {[%clk 0:00:12.9]} 27... Re2 {[%clk
0:02:46.9]} 0-1

[Event "Live Chess"]
[Site "Chess.com"]
[Date "2023.05.21"]
[Round "-"]
[White "gmnorfolk"]
[Black "mikkyb4"]
[Result "1-0"]
[WhiteElo "2128"]
[BlackElo "1037"]
[TimeControl "300"]
[EndTime "16:57:43 PDT"]
[Termination "gmnorfolk won by resignation"]

1. d4 {[%clk 0:04:58.3]} 1... g6 {[%clk 0:04:59.9]} 2. e4 {[%clk 0:04:56.6]}
2... Bg7 {[%clk 0:04:59.5]} 3. Nc3 {[%clk 0:04:52.4]} 3... d6 {[%clk 0:04:58.5]}
4. Be3 {[%clk 0:04:46.6]} 4... a6 {[%clk 0:04:54.5]} 5. Qd2 {[%clk 0:04:44.8]}
5... b5 {[%clk 0:04:53.6]} 6. h4 {[%clk 0:04:42.7]} 6... h6 {[%clk 0:04:50.8]}
7. a4 {[%clk 0:04:32.9]} 7... b4 {[%clk 0:04:48.9]} 8. Nce2 {[%clk 0:04:30.8]}
8... a5 {[%clk 0:04:40.2]} 9. Ng3 {[%clk 0:04:24.3]} 9... Nd7 {[%clk 0:04:32.4]}
10. h5 {[%clk 0:04:21.9]} 10... g5 {[%clk 0:04:30.8]} 11. Nf5 {[%clk 0:04:20.3]}
11... Bf6 {[%clk 0:04:23.3]} 12. Bb5 {[%clk 0:04:13.9]} 12... e6 {[%clk
0:04:08.8]} 13. Ng3 {[%clk 0:04:10.5]} 13... Ba6 {[%clk 0:03:54.2]} 14. Bxa6
{[%clk 0:04:07.2]} 14... Rxa6 {[%clk 0:03:51.8]} 15. N1e2 {[%clk 0:04:06.6]}
15... Ne7 {[%clk 0:03:40.2]} 16. O-O {[%clk 0:04:02.2]} 16... e5 {[%clk
0:03:37.6]} 17. d5 {[%clk 0:03:54.1]} 17... Bg7 {[%clk 0:03:27.9]} 18. Qd3
{[%clk 0:03:50.3]} 18... Ra8 {[%clk 0:03:24.4]} 19. c3 {[%clk 0:03:47.2]} 19...
f5 {[%clk 0:03:21.8]} 20. exf5 {[%clk 0:03:43.7]} 20... O-O {[%clk 0:03:19.8]}
21. cxb4 {[%clk 0:03:37.2]} 21... Nxf5 {[%clk 0:03:12.1]} 22. Nxf5 {[%clk
0:03:35.2]} 22... Bh8 {[%clk 0:02:50.2]} 23. Nxh6+ {[%clk 0:03:33.7]} 1-0

[Event "Live Chess"]
[Site "Chess.com"]
[Date "2023.05.21"]
[Round "-"]
[White "AbilifyXL"]
[Black "karimghalambaz"]
[Result "1-0"]
[WhiteElo "1951"]
[BlackElo "1280"]
[TimeControl "300"]
[EndTime "16:57:51 PDT"]
[Termination "AbilifyXL won on time"]

1. d4 {[%clk 0:04:59]} 1... e5 {[%clk 0:04:55]} 2. c4 {[%clk 0:04:57.5]} 2...
exd4 {[%clk 0:04:53.5]} 3. Qxd4 {[%clk 0:04:56.8]} 3... Nc6 {[%clk 0:04:50.4]}
4. Qd1 {[%clk 0:04:55.9]} 4... Nf6 {[%clk 0:04:45.9]} 5. Nf3 {[%clk 0:04:54.1]}
5... Bb4+ {[%clk 0:04:39]} 6. Bd2 {[%clk 0:04:52.9]} 6... Bxd2+ {[%clk
0:04:37.1]} 7. Nbxd2 {[%clk 0:04:52.8]} 7... O-O {[%clk 0:04:34.7]} 8. e3 {[%clk
0:04:52.1]} 8... d6 {[%clk 0:04:32]} 9. Be2 {[%clk 0:04:50.9]} 9... Bf5 {[%clk
0:04:29.8]} 10. O-O {[%clk 0:04:50.1]} 10... Nb4 {[%clk 0:04:27.5]} 11. Rc1
{[%clk 0:04:47.1]} 11... Nxa2 {[%clk 0:04:22.8]} 12. Ra1 {[%clk 0:04:43.1]}
12... Nb4 {[%clk 0:04:20.6]} 13. Nh4 {[%clk 0:04:41.7]} 13... Be6 {[%clk
0:04:11.1]} 14. Qb3 {[%clk 0:04:38]} 14... Nc6 {[%clk 0:04:06]} 15. Qxb7 {[%clk
0:04:36.6]} 15... Ne7 {[%clk 0:03:58.9]} 16. Qb3 {[%clk 0:04:34.8]} 16... Rb8
{[%clk 0:03:51.2]} 17. Qc2 {[%clk 0:04:33.6]} 17... Rb7 {[%clk 0:03:43.3]} 18.
Nhf3 {[%clk 0:04:32.3]} 18... Nc6 {[%clk 0:03:33.1]} 19. Nd4 {[%clk 0:04:24.3]}
19... Nb4 {[%clk 0:03:24.5]} 20. Qc3 {[%clk 0:04:22.1]} 20... Bc8 {[%clk
0:03:12.4]} 21. h3 {[%clk 0:04:16.3]} 21... d5 {[%clk 0:03:09.9]} 22. c5 {[%clk
0:04:12.3]} 22... c6 {[%clk 0:02:54.8]} 23. Ra4 {[%clk 0:04:09.3]} 23... a5
{[%clk 0:02:28.5]} 24. Rfa1 {[%clk 0:03:58.5]} 24... Ne4 {[%clk 0:02:12.6]} 25.
Nxe4 {[%clk 0:03:53.7]} 25... dxe4 {[%clk 0:02:08.9]} 26. Rxa5 {[%clk
0:03:48.3]} 26... Nd5 {[%clk 0:02:06.7]} 27. Qc2 {[%clk 0:03:44.9]} 27... Bd7
{[%clk 0:01:53.8]} 28. b3 {[%clk 0:03:39.3]} 28... Qc8 {[%clk 0:01:36.9]} 29.
Qxe4 {[%clk 0:03:27.9]} 29... Re8 {[%clk 0:01:01.1]} 30. Qc2 {[%clk 0:03:23.5]}
30... Bxh3 {[%clk 0:00:55.9]} 31. Ra8 {[%clk 0:03:18.3]} 31... Rb8 {[%clk
0:00:37.3]} 32. Rxb8 {[%clk 0:03:16.8]} 32... Qxb8 {[%clk 0:00:35.9]} 33. gxh3
{[%clk 0:03:14.8]} 33... Qc8 {[%clk 0:00:30.6]} 34. Bg4 {[%clk 0:03:13.3]} 34...
Qc7 {[%clk 0:00:22.1]} 35. Ra6 {[%clk 0:03:05.3]} 35... Nb4 {[%clk 0:00:17.2]}
36. Qc4 {[%clk 0:02:55.4]} 36... Nxa6 {[%clk 0:00:15.1]} 37. Qxa6 {[%clk
0:02:54.7]} 37... Rb8 {[%clk 0:00:09.9]} 38. Nxc6 {[%clk 0:02:49]} 38... Rxb3
{[%clk 0:00:00.1]} 39. Qa8+ {[%clk 0:02:46.1]} 1-0

[Event "Live Chess"]
[Site "Chess.com"]
[Date "2023.05.21"]
[Round "-"]
[White "luckywookie"]
[Black "Tilbs_12"]
[Result "0-1"]
[WhiteElo "767"]
[BlackElo "1545"]
[TimeControl "300"]
[EndTime "16:58:07 PDT"]
[Termination "Tilbs_12 won on time"]

1. e4 {[%clk 0:04:58.4]} 1... c6 {[%clk 0:04:59.1]} 2. c3 {[%clk 0:04:56.2]}
2... d5 {[%clk 0:04:57.7]} 3. exd5 {[%clk 0:04:51]} 3... cxd5 {[%clk 0:04:56.5]}
4. d4 {[%clk 0:04:50.2]} 4... Nc6 {[%clk 0:04:56]} 5. Nf3 {[%clk 0:04:44]} 5...
Bg4 {[%clk 0:04:53.8]} 6. Bb5 {[%clk 0:04:40.6]} 6... Nf6 {[%clk 0:04:53]} 7.
Bg5 {[%clk 0:04:28.4]} 7... e6 {[%clk 0:04:50.5]} 8. h3 {[%clk 0:04:23.5]} 8...
Bxf3 {[%clk 0:04:46.8]} 9. Qxf3 {[%clk 0:04:21.6]} 9... Be7 {[%clk 0:04:46.4]}
10. O-O {[%clk 0:04:12.1]} 10... O-O {[%clk 0:04:41]} 11. Bxf6 {[%clk
0:04:10.2]} 11... Bxf6 {[%clk 0:04:39.5]} 12. Bd3 {[%clk 0:04:02.2]} 12... e5
{[%clk 0:04:32.8]} 13. Re1 {[%clk 0:03:58.4]} 13... e4 {[%clk 0:04:31.2]} 14.
Bxe4 {[%clk 0:03:55.1]} 14... dxe4 {[%clk 0:04:30.4]} 15. Rxe4 {[%clk
0:03:54.1]} 15... Re8 {[%clk 0:04:28.2]} 16. Nd2 {[%clk 0:03:48.9]} 16... Rxe4
{[%clk 0:04:26.2]} 17. Nxe4 {[%clk 0:03:47.6]} 17... Rc8 {[%clk 0:03:56.5]} 18.
Rd1 {[%clk 0:03:36.9]} 18... Qe7 {[%clk 0:03:49.8]} 19. d5 {[%clk 0:03:24.2]}
19... Ne5 {[%clk 0:03:47.4]} 20. Nxf6+ {[%clk 0:03:13.2]} 20... Qxf6 {[%clk
0:03:44.7]} 21. Qxf6 {[%clk 0:03:12.1]} 21... gxf6 {[%clk 0:03:43.7]} 22. d6
{[%clk 0:03:10.8]} 22... Rd8 {[%clk 0:03:40.3]} 23. Rd4 {[%clk 0:03:03.5]} 23...
Kf8 {[%clk 0:03:32.6]} 24. c4 {[%clk 0:03:01.9]} 24... Ke8 {[%clk 0:03:28.3]}
25. c5 {[%clk 0:03:00.6]} 25... Kd7 {[%clk 0:03:27.1]} 26. b4 {[%clk 0:02:59.4]}
26... a6 {[%clk 0:03:25]} 27. Kf1 {[%clk 0:02:43.9]} 27... Ke6 {[%clk
0:03:21.7]} 28. g4 {[%clk 0:02:39.2]} 28... Nc6 {[%clk 0:03:16.9]} 29. Rd2
{[%clk 0:02:08.4]} 29... Nxb4 {[%clk 0:03:10.7]} 30. a3 {[%clk 0:01:59.6]} 30...
Nc6 {[%clk 0:03:08.2]} 31. Ke2 {[%clk 0:01:56]} 31... Ne5 {[%clk 0:03:05.7]} 32.
f4 {[%clk 0:01:42.4]} 32... Nd7 {[%clk 0:02:55.5]} 33. Ke3 {[%clk 0:01:31.3]}
33... f5 {[%clk 0:02:52.2]} 34. Kd4 {[%clk 0:01:24.4]} 34... fxg4 {[%clk
0:02:49.7]} 35. hxg4 {[%clk 0:01:23.1]} 35... Rc8 {[%clk 0:02:42.8]} 36. Re2+
{[%clk 0:01:17.6]} 36... Kf6 {[%clk 0:02:40.7]} 37. g5+ {[%clk 0:01:11.1]} 37...
Kg6 {[%clk 0:02:33.9]} 38. Re7 {[%clk 0:01:06.8]} 38... Nxc5 {[%clk 0:02:30]}
39. d7 {[%clk 0:01:01]} 39... Nxd7 {[%clk 0:02:22.9]} 40. Rxd7 {[%clk
0:00:59.4]} 40... Rb8 {[%clk 0:02:18.2]} 41. Ke4 {[%clk 0:00:54.6]} 41... b5
{[%clk 0:02:15.7]} 42. f5+ {[%clk 0:00:45.4]} 42... Kxg5 {[%clk 0:02:14.4]} 43.
Rxf7 {[%clk 0:00:41.9]} 43... h5 {[%clk 0:02:08.9]} 44. Ke5 {[%clk 0:00:39.1]}
44... b4 {[%clk 0:02:03.6]} 45. axb4 {[%clk 0:00:34.7]} 45... Rb5+ {[%clk
0:01:58.1]} 46. Ke4 {[%clk 0:00:20.7]} 46... Rxb4+ {[%clk 0:01:56.8]} 47. Kf3
{[%clk 0:00:18.7]} 47... a5 {[%clk 0:01:51.8]} 48. Rg7+ {[%clk 0:00:14.6]} 48...
Kf6 {[%clk 0:01:45.6]} 49. Rg2 {[%clk 0:00:07.5]} 49... a4 {[%clk 0:01:43.6]}
50. Ra2 {[%clk 0:00:03.4]} 50... Kxf5 {[%clk 0:01:42.5]} 51. Kg3 {[%clk
0:00:01]} 51... Kg5 {[%clk 0:01:41.5]} 0-1

[Event "Live Chess"]
[Site "Chess.com"]
[Date "2023.05.21"]
[Round "-"]
[White "davigator"]
[Black "JoshMcK"]
[Result "1-0"]
[WhiteElo "2325"]
[BlackElo "1527"]
[TimeControl "300"]
[EndTime "16:58:49 PDT"]
[Termination "davigator won by checkmate"]

1. e4 {[%clk 0:04:48]} 1... c6 {[%clk 0:04:55.7]} 2. d4 {[%clk 0:04:46]} 2... d5
{[%clk 0:04:51.3]} 3. Nc3 {[%clk 0:04:42.8]} 3... dxe4 {[%clk 0:04:49.2]} 4.
Nxe4 {[%clk 0:04:41.7]} 4... Nf6 {[%clk 0:04:47.3]} 5. Nxf6+ {[%clk 0:04:40.5]}
5... exf6 {[%clk 0:04:46.8]} 6. c3 {[%clk 0:04:38.8]} 6... Bd6 {[%clk
0:04:42.9]} 7. Bd3 {[%clk 0:04:37.3]} 7... O-O {[%clk 0:04:31.3]} 8. Qc2 {[%clk
0:04:35.9]} 8... Re8+ {[%clk 0:04:28.5]} 9. Ne2 {[%clk 0:04:34.3]} 9... h5
{[%clk 0:04:26.8]} 10. h3 {[%clk 0:04:30.2]} 10... Be6 {[%clk 0:03:49.8]} 11.
Be3 {[%clk 0:04:26.6]} 11... Nd7 {[%clk 0:03:44.4]} 12. a4 {[%clk 0:04:20.2]}
12... a6 {[%clk 0:03:32.1]} 13. a5 {[%clk 0:04:18.1]} 13... Bd5 {[%clk 0:03:27]}
14. O-O {[%clk 0:04:12.4]} 14... g6 {[%clk 0:02:46.3]} 15. Rfe1 {[%clk
0:03:59.8]} 15... Qc7 {[%clk 0:02:40.4]} 16. c4 {[%clk 0:03:41]} 16... Be6
{[%clk 0:02:36.2]} 17. Nc3 {[%clk 0:03:34.6]} 17... Bb4 {[%clk 0:02:25.7]} 18.
Bxg6 {[%clk 0:03:22.8]} 18... fxg6 {[%clk 0:02:10.4]} 19. Qxg6+ {[%clk 0:03:21]}
19... Kh8 {[%clk 0:02:04]} 20. Qxh5+ {[%clk 0:03:19.3]} 20... Kg8 {[%clk
0:02:00.6]} 21. d5 {[%clk 0:03:08.9]} 21... cxd5 {[%clk 0:01:55.6]} 22. Nxd5
{[%clk 0:03:01.4]} 22... Qxc4 {[%clk 0:01:44.3]} 23. Qg6+ {[%clk 0:02:53.2]}
23... Kh8 {[%clk 0:01:39.3]} 24. Nxf6 {[%clk 0:02:41.3]} 24... Nxf6 {[%clk
0:01:33.1]} 25. Qxf6+ {[%clk 0:02:39.9]} 25... Kg8 {[%clk 0:01:28.7]} 26. Bd4
{[%clk 0:02:32.8]} 26... Re7 {[%clk 0:01:16.8]} 27. Re3 {[%clk 0:02:00.5]} 27...
Kh7 {[%clk 0:01:06.2]} 28. Qh4+ {[%clk 0:01:52.8]} 28... Kg6 {[%clk 0:00:56.8]}
29. Rg3+ {[%clk 0:01:51.4]} 29... Kf5 {[%clk 0:00:49.8]} 30. Qg5+ {[%clk
0:01:42.4]} 30... Ke4 {[%clk 0:00:46.3]} 31. Qe5# {[%clk 0:01:41.3]} 1-0

[Event "Live Chess"]
[Site "Chess.com"]
[Date "2023.05.21"]
[Round "-"]
[White "SupremeTactician"]
[Black "NAZRIZ1977"]
[Result "1-0"]
[WhiteElo "2345"]
[BlackElo "2014"]
[TimeControl "300"]
[EndTime "16:58:58 PDT"]
[Termination "SupremeTactician won by resignation"]

1. e4 {[%clk 0:04:59.2]} 1... c5 {[%clk 0:04:57.3]} 2. Nf3 {[%clk 0:04:58.3]}
2... d6 {[%clk 0:04:55.5]} 3. d4 {[%clk 0:04:57.6]} 3... cxd4 {[%clk 0:04:55.1]}
4. Nxd4 {[%clk 0:04:57.2]} 4... Nf6 {[%clk 0:04:54.7]} 5. f3 {[%clk 0:04:56.9]}
5... g6 {[%clk 0:04:54.3]} 6. c4 {[%clk 0:04:55.8]} 6... Bg7 {[%clk 0:04:53.9]}
7. Nc3 {[%clk 0:04:55.5]} 7... O-O {[%clk 0:04:53.5]} 8. Be3 {[%clk 0:04:54.4]}
8... Nc6 {[%clk 0:04:53]} 9. Qd2 {[%clk 0:04:54.1]} 9... Bd7 {[%clk 0:04:52.5]}
10. Rc1 {[%clk 0:04:52.8]} 10... a6 {[%clk 0:04:51.9]} 11. Be2 {[%clk 0:04:52]}
11... Rb8 {[%clk 0:04:51.4]} 12. O-O {[%clk 0:04:51.4]} 12... Nxd4 {[%clk
0:04:50.9]} 13. Bxd4 {[%clk 0:04:50.5]} 13... b5 {[%clk 0:04:50.5]} 14. cxb5
{[%clk 0:04:49.2]} 14... Bxb5 {[%clk 0:04:50]} 15. Bxb5 {[%clk 0:04:48.1]} 15...
axb5 {[%clk 0:04:49.5]} 16. Rfd1 {[%clk 0:04:47]} 16... Ne8 {[%clk 0:04:45.4]}
17. Nd5 {[%clk 0:04:43.7]} 17... Bxd4+ {[%clk 0:04:42.3]} 18. Qxd4 {[%clk
0:04:43.6]} 18... Ng7 {[%clk 0:04:41.8]} 19. Rc7 {[%clk 0:04:32.2]} 19... e6
{[%clk 0:04:30.3]} 20. Nf6+ {[%clk 0:04:29.3]} 20... Kh8 {[%clk 0:04:29.4]} 21.
Rd7 {[%clk 0:04:28.4]} 21... Qa5 {[%clk 0:04:13.5]} 22. Qxd6 {[%clk 0:04:21.7]}
22... Qxa2 {[%clk 0:04:10.4]} 23. Rxf7 {[%clk 0:04:05.3]} 23... Rfc8 {[%clk
0:03:57.2]} 24. Qd7 {[%clk 0:03:51.9]} 1-0

[Event "Live Chess"]
[Site "Chess.com"]
[Date "2023.05.21"]
[Round "-"]
[White "wot-not"]
[Black "stevochess11"]
[Result "0-1"]
[WhiteElo "1546"]
[BlackElo "1779"]
[TimeControl "300"]
[EndTime "16:59:00 PDT"]
[Termination "stevochess11 won by resignation"]

1. e4 {[%clk 0:04:58.5]} 1... c5 {[%clk 0:04:57.2]} 2. f4 {[%clk 0:04:57.5]}
2... g6 {[%clk 0:04:55.9]} 3. Nf3 {[%clk 0:04:57.3]} 3... Nc6 {[%clk 0:04:54.7]}
4. d4 {[%clk 0:04:56.4]} 4... cxd4 {[%clk 0:04:53.7]} 5. Bd3 {[%clk 0:04:55.4]}
5... Bg7 {[%clk 0:04:52.6]} 6. O-O {[%clk 0:04:54.5]} 6... d6 {[%clk 0:04:47]}
7. Nbd2 {[%clk 0:04:54.2]} 7... Bg4 {[%clk 0:04:45.2]} 8. Nb3 {[%clk 0:04:53.4]}
8... Nf6 {[%clk 0:04:40.2]} 9. Bd2 {[%clk 0:04:52.3]} 9... O-O {[%clk
0:04:38.6]} 10. Be1 {[%clk 0:04:51.5]} 10... a5 {[%clk 0:04:24.3]} 11. Bh4
{[%clk 0:04:47.2]} 11... a4 {[%clk 0:04:22]} 12. Nbd2 {[%clk 0:04:45.9]} 12...
Qb6 {[%clk 0:04:16.9]} 13. Rb1 {[%clk 0:04:41]} 13... Nb4 {[%clk 0:04:11.3]} 14.
h3 {[%clk 0:04:34.9]} 14... Be6 {[%clk 0:04:00.2]} 15. f5 {[%clk 0:04:29.3]}
15... Bxa2 {[%clk 0:03:57.3]} 16. Ra1 {[%clk 0:04:24.9]} 16... Nxd3 {[%clk
0:03:52.7]} 17. cxd3 {[%clk 0:04:23.5]} 17... Bb3 {[%clk 0:03:51.4]} 18. Nxb3
{[%clk 0:04:20.1]} 18... Qxb3 {[%clk 0:03:47.7]} 19. Qe2 {[%clk 0:04:12.5]}
19... a3 {[%clk 0:03:38.9]} 20. Rxa3 {[%clk 0:04:10.4]} 20... Rxa3 {[%clk
0:03:37.6]} 21. bxa3 {[%clk 0:04:09.8]} 21... Qxa3 {[%clk 0:03:36.8]} 22. e5
{[%clk 0:04:07]} 22... dxe5 {[%clk 0:03:35.5]} 23. Nxe5 {[%clk 0:04:05.8]} 23...
Nd5 {[%clk 0:03:33.4]} 24. fxg6 {[%clk 0:03:44.2]} 24... hxg6 {[%clk 0:03:32]}
25. Nd7 {[%clk 0:03:32.6]} 25... Ne3 {[%clk 0:03:20.5]} 26. Rf2 {[%clk
0:03:12.4]} 26... Qc1+ {[%clk 0:03:11.5]} 27. Kh2 {[%clk 0:03:08.8]} 27... Qc7+
{[%clk 0:03:09.9]} 28. Bg3 {[%clk 0:03:01.4]} 28... Qxd7 {[%clk 0:03:05]} 29.
Qf3 {[%clk 0:03:01.1]} 29... Nf5 {[%clk 0:03:02.1]} 30. Bf4 {[%clk 0:02:45.4]}
30... e5 {[%clk 0:02:51.4]} 31. Bg5 {[%clk 0:02:42.2]} 31... Ne3 {[%clk
0:02:43.7]} 32. Bxe3 {[%clk 0:02:39.5]} 32... dxe3 {[%clk 0:02:42.2]} 33. Qxe3
{[%clk 0:02:38.8]} 33... Rd8 {[%clk 0:02:38.8]} 34. Qf3 {[%clk 0:02:34]} 34...
Qxd3 {[%clk 0:02:31.2]} 35. Qxf7+ {[%clk 0:02:31.4]} 35... Kh7 {[%clk 0:02:30]}
36. Rf3 {[%clk 0:02:21.1]} 36... Qd6 {[%clk 0:02:24.2]} 37. Rg3 {[%clk
0:02:19.6]} 37... e4 {[%clk 0:02:21.8]} 38. h4 {[%clk 0:02:13.1]} 38... Rf8
{[%clk 0:02:19.1]} 39. Qb3 {[%clk 0:01:58.5]} 39... Be5 {[%clk 0:02:16.5]} 0-1

[Event "Live Chess"]
[Site "Chess.com"]
[Date "2023.05.21"]
[Round "-"]
[White "WelshTiger"]
[Black "1600x"]
[Result "1-0"]
[WhiteElo "2359"]
[BlackElo "1827"]
[TimeControl "300"]
[EndTime "16:59:00 PDT"]
[Termination "WelshTiger won by resignation"]

1. e4 {[%clk 0:04:44.9]} 1... e5 {[%clk 0:04:57.3]} 2. Nf3 {[%clk 0:04:43.8]}
2... d5 {[%clk 0:04:55.7]} 3. exd5 {[%clk 0:04:41.5]} 3... e4 {[%clk 0:04:49]}
4. Qe2 {[%clk 0:04:40.7]} 4... Qe7 {[%clk 0:04:47.3]} 5. Nd4 {[%clk 0:04:33.4]}
5... Nf6 {[%clk 0:04:45.3]} 6. Nc3 {[%clk 0:04:31.7]} 6... c5 {[%clk 0:04:43.6]}
7. dxc6 {[%clk 0:04:29.5]} 7... Nxc6 {[%clk 0:04:42.2]} 8. Nxc6 {[%clk
0:04:28.6]} 8... bxc6 {[%clk 0:04:35.9]} 9. d4 {[%clk 0:04:27.8]} 9... Bg4
{[%clk 0:04:34.2]} 10. Qc4 {[%clk 0:04:24.7]} 10... Qd6 {[%clk 0:04:32.8]} 11.
Bf4 {[%clk 0:04:21.9]} 11... Qe6 {[%clk 0:04:31.6]} 12. Qxe6+ {[%clk 0:04:14.5]}
12... Bxe6 {[%clk 0:04:29.1]} 13. O-O-O {[%clk 0:04:12.7]} 13... a5 {[%clk
0:04:26.7]} 14. Be5 {[%clk 0:04:02.4]} 14... Bb4 {[%clk 0:04:24.6]} 15. Bxf6
{[%clk 0:03:58.1]} 15... gxf6 {[%clk 0:04:21.4]} 16. Nxe4 {[%clk 0:03:52.8]}
16... f5 {[%clk 0:04:20.2]} 17. Nc5 {[%clk 0:03:48.8]} 17... Bxa2 {[%clk
0:04:18.3]} 18. b3 {[%clk 0:03:42.2]} 18... a4 {[%clk 0:04:13]} 19. Bc4 {[%clk
0:03:36.7]} 19... axb3 {[%clk 0:04:11.3]} 20. cxb3 {[%clk 0:03:34.6]} 20... Rg8
{[%clk 0:04:07.6]} 21. g3 {[%clk 0:03:33.1]} 21... Kd8 {[%clk 0:04:05.2]} 22.
Kb2 {[%clk 0:03:28]} 22... Bxc5 {[%clk 0:04:01.9]} 23. dxc5+ {[%clk 0:03:26.7]}
23... Kc7 {[%clk 0:04:01.8]} 24. Ra1 {[%clk 0:03:25]} 24... Bxb3 {[%clk
0:03:56.7]} 25. Kxb3 {[%clk 0:03:20.9]} 25... Rgf8 {[%clk 0:03:53.6]} 26. Rxa8
{[%clk 0:03:18.3]} 26... Rxa8 {[%clk 0:03:52.1]} 27. Re1 {[%clk 0:03:11.7]}
27... Ra5 {[%clk 0:03:46.4]} 28. Kb4 {[%clk 0:03:09.4]} 28... Ra7 {[%clk
0:03:44.7]} 29. Re7+ {[%clk 0:03:07.7]} 29... Kb8 {[%clk 0:03:43.7]} 30. Rxa7
{[%clk 0:03:06.5]} 30... Kxa7 {[%clk 0:03:43.6]} 31. Bxf7 {[%clk 0:03:05.5]}
31... h6 {[%clk 0:03:42.5]} 32. Be6 {[%clk 0:03:04.9]} 32... h5 {[%clk
0:03:38.9]} 33. Bxf5 {[%clk 0:03:03.5]} 33... h4 {[%clk 0:03:38.2]} 34. gxh4
{[%clk 0:03:02.6]} 34... Ka6 {[%clk 0:03:36.2]} 35. h5 {[%clk 0:03:02.5]} 35...
Kb7 {[%clk 0:03:34.7]} 36. h6 {[%clk 0:03:02.4]} 1-0

[Event "Live Chess"]
[Site "Chess.com"]
[Date "2023.05.21"]
[Round "-"]
[White "Biranidun"]
[Black "Conradical12"]
[Result "1-0"]
[WhiteElo "2655"]
[BlackElo "1598"]
[TimeControl "300"]
[EndTime "16:59:13 PDT"]
[Termination "Biranidun won by resignation"]

1. e4 {[%clk 0:04:53.2]} 1... e5 {[%clk 0:04:59.4]} 2. Nf3 {[%clk 0:04:52.1]}
2... Nc6 {[%clk 0:04:59]} 3. Bc4 {[%clk 0:04:50.7]} 3... Nf6 {[%clk 0:04:58.7]}
4. Ng5 {[%clk 0:04:49.4]} 4... Bc5 {[%clk 0:04:58.4]} 5. Bxf7+ {[%clk
0:04:48.3]} 5... Kf8 {[%clk 0:04:57.2]} 6. Bc4 {[%clk 0:04:48.2]} 6... h6 {[%clk
0:04:55.7]} 7. Nf7 {[%clk 0:04:47.4]} 7... Bxf2+ {[%clk 0:04:54.1]} 8. Kxf2
{[%clk 0:04:45.5]} 8... Nxe4+ {[%clk 0:04:53.4]} 9. Kg1 {[%clk 0:04:41.7]} 9...
Qe7 {[%clk 0:04:44.6]} 10. Nxh8 {[%clk 0:04:24.7]} 10... Qc5+ {[%clk 0:04:43.1]}
11. d4 {[%clk 0:04:23.1]} 11... Nxd4 {[%clk 0:04:41.9]} 12. Ng6+ {[%clk
0:04:18.9]} 12... Ke8 {[%clk 0:04:39.7]} 13. Be3 {[%clk 0:04:18.8]} 13... Qxc4
{[%clk 0:04:33.6]} 14. Bxd4 {[%clk 0:03:49.4]} 14... exd4 {[%clk 0:04:28.7]} 15.
Qf3 {[%clk 0:03:46.1]} 15... Nf6 {[%clk 0:04:20.3]} 16. Nd2 {[%clk 0:03:43.5]}
1-0